bitfinex-derivatives/quotes_ETHF0:USTF0_20210402
["timestamp","ask_amount","ask_price","bid_price","bid_amount"]
[1617376405338,4.21875,2061.1,2061.0,154.1137]
[1617376407239,2.90695,2061.1,2061.0,154.1137]
[1617376407639,4.33465,2061.1,2061.0,154.1137]
[1617376407839,3.36825,2061.1,2061.0,154.1137]
[1617376409642,1.94055,2061.1,2061.0,154.1137]
[1617376410542,31.94055,2061.1,2061.0,154.0937]
[1617376410743,35.83595,2061.1,2061.0,154.0937]
[1617376410944,33.83595,2061.1,2061.0,154.0937]
[1617376411145,33.83595,2061.1,2061.0,152.9864]
[1617376411344,33.83595,2061.1,2061.0,151.0716]
[1617376411644,34.93595,2061.1,2061.0,151.0716]
[1617376412244,33.83595,2061.1,2061.0,151.0716]
[1617376412445,3.83595,2061.1,2061.0,151.0716]
[1617376412645,1.94055,2061.1,2061.0,151.0716]
[1617376413445,1.94055,2061.1,2061.0,150.8489]
[1617376414246,1.94055,2061.1,2061.0,150.7849]
[1617376414755,0.97415,2061.1,2061.0,150.7849]
[1617376416352,32.07415,2061.1,2061.0,150.7849]
[1617376416552,32.49415,2061.1,2061.0,150.7849]
[1617376417152,31.39415,2061.1,2061.0,150.7849]
[1617376417352,32.49415,2061.1,2061.0,150.7849]
[1617376417552,2.49415,2061.1,2061.0,150.7849]
[1617376417754,1.39415,2061.1,2061.0,150.7849]
[1617376418657,1.39415,2061.1,2061.0,152.7617]
[1617376420260,1.39415,2061.1,2061.0,150.7849]
[1617376421861,0.42775,2061.1,2061.0,150.7849]
[1617376422766,0.42775,2061.1,2061.0,153.69185]
[1617376423663,0.42,2061.1,2061.0,153.69185]
[1617376427970,0.42,2061.1,2061.0,153.68185]
[1617376428871,78.5559,2062.0,2061.0,153.68185]
[1617376428872,2.90695,2061.7,2061.0,155.68185]
[1617376429072,78.0095,2062.0,2061.0,155.68185]
[1617376429272,14.0,2061.1,2061.0,155.68185]
[1617376429472,14.0,2061.1,2061.0,153.68185]
[1617376430675,78.0095,2062.0,2061.0,153.68185]
[1617376430873,78.0095,2062.0,2061.9,2.90695]
[1617376431073,2.90695,2062.3,2061.9,4.60335]
[1617376431273,67.6795,2063.4,2062.0,2.0]
[1617376432477,67.6795,2063.4,2062.0,1.98]
[1617376432876,2.90695,2063.2,2063.0,2.90695]
[1617376433076,2.90695,2063.2,2062.0,1.98]
[1617376433279,2.90695,2063.2,2062.5,1.5032]
[1617376434978,67.6795,2063.4,2062.9,2.90695]
[1617376435478,30.0,2064.8,2063.0,1.98]
[1617376435678,111.6448,2064.8,2063.0,3.4031]
[1617376435879,110.6784,2064.8,2063.0,3.4031]
[1617376436079,0.25194457,2064.7,2063.0,3.4031]
[1617376436277,1.35194457,2064.7,2063.0,3.4031]
[1617376436678,0.25202907,2064.6,2063.0,3.4031]
[1617376436879,1.35202907,2064.6,2063.3,2.90695]
[1617376437277,1.35202907,2064.6,2063.3,2.88695]
[1617376437479,109.5784,2064.8,2063.3,2.88695]
[1617376437677,110.6784,2064.8,2063.3,2.88695]
[1617376437879,109.5784,2064.8,2063.3,2.88695]
[1617376438079,109.5784,2064.8,2063.4,1.98]
[1617376438879,109.5784,2064.8,2063.8,2.90695]
[1617376439079,109.5784,2064.8,2063.8,4.23135]
[1617376439582,80.5448,2064.8,2063.8,4.23135]
[1617376440179,80.5448,2064.8,2063.8,6.21135]
[1617376440580,80.5448,2064.8,2063.8,4.23135]
[1617376440981,2.4243247,2064.5,2064.1,2.90695]
[1617376441182,2.4243247,2064.5,2063.8,1.3244]
[1617376442883,80.5448,2064.8,2063.8,4.23135]
[1617376442884,2.90695,2063.9,2063.8,4.23135]
[1617376443484,2.90695,2063.9,2063.8,4.21135]
[1617376444587,2.90695,2063.9,2063.8,2.90695]
[1617376445388,2.90695,2063.9,2063.0,1.4231]
[1617376445792,69.622,2063.7,2062.5,1.5032]
[1617376445993,69.622,2063.7,2062.3,15.3428]
[1617376446992,69.622,2063.7,2063.4,2.90695]
[1617376447194,69.622,2063.7,2061.9,1.6964]
[1617376447396,99.622,2063.7,2061.1,30.0]
[1617376447592,99.622,2063.7,2061.3,13.0918]
[1617376448893,99.622,2063.7,2061.8,2.90695]
[1617376449093,100.0706844,2063.7,2061.8,2.90695]
[1617376449493,99.622,2063.7,2061.8,2.90695]
[1617376449693,100.722,2063.7,2061.8,2.90695]
[1617376449893,99.10429291,2063.7,2061.8,2.90695]
[1617376450096,98.6556,2063.7,2061.8,2.90695]
[1617376450495,99.10430654,2063.7,2061.8,2.90695]
[1617376450795,100.20430654,2063.7,2061.8,2.90695]
[1617376450995,2.90695,2061.9,2061.8,2.90695]
[1617376454100,58.2058,2062.5,2061.8,2.90695]
[1617376454901,1.1,2063.3,2061.8,2.90695]
[1617376455100,0.44993577,2063.9,2062.4,2.90695]
[1617376455300,61.5746,2063.6,2062.4,4.32975]
[1617376456000,60.6059,2063.6,2062.4,4.32975]
[1617376456599,30.0,2063.5,2062.4,4.32975]
[1617376456999,2.42563312,2063.4,2062.4,4.32975]
[1617376457198,32.42563312,2063.4,2062.4,4.32975]
[1617376457399,32.42563312,2063.4,2061.7,1.8954]
[1617376457602,32.42563312,2063.4,2061.2,1.6552]
[1617376457801,32.42563312,2063.4,2061.0,180.7749]
[1617376458702,32.42563312,2063.4,2061.1,43.3182]
[1617376458903,31.45693312,2063.4,2061.1,43.3182]
[1617376459102,31.45693312,2063.4,2062.5,2.90695]
[1617376459502,1.45693312,2063.4,2062.5,2.90695]
[1617376459702,90.6059,2063.6,2062.5,2.90695]
[1617376461005,90.6059,2063.6,2062.9,2.90695]
[1617376461606,0.4502166,2064.0,2062.9,2.90695]
[1617376461807,0.45014712,2064.1,2062.9,2.90695]
[1617376462208,0.45079783,2064.3,2062.9,2.90695]
[1617376462407,0.45077012,2064.4,2062.9,2.90695]
[1617376462807,61.17336023,2064.5,2062.9,2.90695]
[1617376463007,61.17336023,2064.5,2063.6,2.90695]
[1617376463207,61.17336023,2064.5,2063.6,4.35825]
[1617376463810,91.17336023,2064.5,2063.6,4.35825]
[1617376465010,2.90695,2063.7,2063.6,4.35825]
[1617376466011,1.93825,2063.7,2063.6,4.35825]
[1617376467712,1.93825,2063.7,2061.2,2.0]
[1617376467912,61.2322,2063.6,2060.4,30.0]
[1617376468117,30.0,2063.5,2058.2,4.94362052]
[1617376468315,68.0113,2062.3,2058.1,14.1857]
[1617376468514,30.0,2062.2,2058.1,14.1857]
[1617376468717,30.0,2062.2,2059.6,30.0]
[1617376469115,30.0,2062.2,2061.4,2.90695]
[1617376469317,69.9751,2062.3,2061.4,2.90695]
[1617376469318,2.41496972,2062.3,2061.4,2.90695]
[1617376469720,1.9638,2062.3,2061.4,2.90695]
[1617376469919,0.15917402,2062.7,2061.4,2.90695]
[1617376470118,0.45113396,2062.7,2061.4,2.90695]
[1617376470917,0.45111788,2062.8,2061.4,2.90695]
[1617376471119,0.45147198,2062.5,2061.9,2.90695]
[1617376471317,0.45147198,2062.5,2060.7,1.5181]
[1617376471518,2.36787198,2062.5,2059.7,13.3352]
[1617376471919,30.0,2062.4,2060.7,2.0]
[1617376472119,30.45148347,2062.4,2059.7,13.3352]
[1617376472619,2.45148882,2062.3,2059.7,13.3352]
[1617376472819,29.48280373,2062.2,2059.7,13.3352]
[1617376473019,2.90695,2061.1,2061.0,153.68185]
[1617376473219,2.90695,2061.1,2061.0,150.7749]
[1617376474119,31.93825,2061.1,2061.0,150.7749]
[1617376474319,33.31495,2061.1,2061.0,150.7749]
[1617376475321,4.7356552,2061.1,2061.0,150.7651]
[1617376475522,3.3589552,2061.1,2061.0,150.7651]
[1617376475721,2.90695,2061.1,2061.0,150.7651]
[1617376476922,1.93825,2061.1,2061.0,150.7651]
[1617376477123,1.93825,2061.1,2061.0,153.67205]
[1617376479926,1.10515,2061.1,2061.0,150.7651]
[1617376480326,2.54545,2061.1,2061.0,150.7651]
[1617376480526,32.54545,2061.1,2061.0,150.7651]
[1617376480726,96.95225,2061.1,2061.0,150.7651]
[1617376480927,66.95225,2061.1,2061.0,150.7651]
[1617376483830,1.57675,2061.1,2061.0,150.7651]
[1617376484028,0.13645,2061.1,2061.0,152.6609]
[1617376484228,0.45164702,2061.7,2061.0,152.6609]
[1617376484431,76.9788,2061.8,2061.0,152.6609]
[1617376484635,76.9788,2061.8,2061.0,153.0809]
[1617376485041,76.9788,2061.8,2061.0,151.1851]
[1617376485042,106.9788,2061.8,2061.0,151.1851]
[1617376485231,106.9788,2061.8,2061.4,2.90695]
[1617376485632,106.9788,2061.8,2061.0,151.1851]
[1617376486731,107.43041414,2061.8,2061.0,151.1851]
[1617376487132,2.90695,2061.1,2061.0,151.1851]
[1617376487531,77.43041414,2061.8,2061.0,151.1851]
[1617376487733,77.43041414,2061.8,2061.0,152.7396]
[1617376487932,76.9788,2061.8,2061.0,152.7396]
[1617376488933,76.9788,2061.8,2061.0,151.1851]
[1617376489132,30.0,2061.7,2061.3,2.90695]
[1617376489333,31.36,2061.7,2061.3,2.90695]
[1617376490033,31.81163259,2061.7,2061.3,2.90695]
[1617376490233,30.0,2061.7,2061.3,2.90695]
[1617376490835,29.0313,2061.7,2061.3,2.90695]
[1617376491235,2.90695,2061.4,2061.3,2.90695]
[1617376491935,2.90695,2061.4,2061.0,151.1851]
[1617376493237,2.90695,2061.1,2061.0,151.1851]
[1617376494239,3.87415,2061.1,2061.0,151.1851]
[1617376494641,2.90695,2061.1,2061.0,151.1851]
[1617376495840,83.59355,2061.1,2061.0,151.1851]
[1617376496540,85.53485,2061.1,2061.0,151.1851]
[1617376496741,5.81455,2061.1,2061.0,151.1851]
[1617376497340,4.84825,2061.1,2061.0,151.1851]
[1617376497941,4.71265,2061.1,2061.0,151.1851]
[1617376500252,4.76910257,2061.1,2061.0,151.1851]
[1617376500750,69.83670257,2061.1,2061.0,151.1851]
[1617376501352,2.82780257,2061.1,2061.0,151.1851]
[1617376501754,2.77135,2061.1,2061.0,151.1851]
[1617376503353,3.73585,2061.1,2061.0,151.1851]
[1617376503754,2.77135,2061.1,2061.0,151.1851]
[1617376510161,3.74715,2061.1,2061.0,151.1851]
[1617376510361,2.77135,2061.1,2061.0,151.1851]
[1617376511162,2.77135,2061.1,2061.0,152.4132]
[1617376512162,2.77135,2061.1,2061.0,154.4132]
[1617376512363,2.77135,2061.1,2061.0,152.4132]
[1617376512566,0.05654998,2061.3,2061.0,152.4132]
[1617376512965,0.90469018,2062.2,2061.0,152.4132]
[1617376513166,0.90469018,2062.2,2061.1,2.0]
[1617376513364,0.9047805,2062.3,2062.1,2.90695]
[1617376513564,0.9047805,2062.3,2062.1,4.58965]
[1617376513765,0.90471498,2062.4,2062.1,4.58965]
[1617376513964,4.53623923,2062.5,2062.1,4.58965]
[1617376513965,3.39457826,2062.5,2062.1,4.58965]
[1617376514163,0.90466215,2062.6,2062.1,4.58965]
[1617376514764,0.90466215,2062.6,2061.5,1.5526]
[1617376515368,0.90466215,2062.6,2062.1,2.90695]
[1617376515866,0.90466215,2062.6,2062.0,1.2555]
[1617376516466,37.45614828,2063.0,2062.0,1.2555]
[1617376516467,0.90471014,2062.5,2062.0,1.2555]
[1617376516864,0.90471014,2062.5,2061.1,2.0]
[1617376516865,1.64965892,2062.5,2061.1,2.0]
[1617376517069,1.64965892,2062.5,2061.0,152.4132]
[1617376517270,2.90695,2061.4,2061.2,2.90695]
[1617376518067,2.90695,2061.4,2061.0,151.1851]
[1617376519368,2.90695,2061.4,2061.2,2.90695]
[1617376519970,1.93755,2061.4,2061.2,2.90695]
[1617376523176,0.90487239,2062.0,2061.2,2.90695]
[1617376523377,0.90487239,2062.0,2061.9,2.90695]
[1617376523779,1.13111029,2062.2,2061.0,151.1851]
[1617376523780,77.761,2061.9,2061.0,151.1851]
[1617376523977,77.761,2061.9,2061.0,151.1429]
[1617376525277,77.761,2061.9,2061.3,2.90695]
[1617376525677,77.761,2061.9,2061.0,151.1429]
[1617376525879,12.0,2061.3,2061.0,151.1429]
[1617376526079,13.7386,2061.3,2061.0,151.1429]
[1617376527080,12.7692,2061.3,2061.0,151.1429]
[1617376527480,2.90695,2061.1,2061.0,154.04985]
[1617376527681,3.87625,2061.1,2061.0,154.04985]
[1617376528280,2.90695,2061.1,2061.0,154.04985]
[1617376533985,1.93755,2061.1,2061.0,154.04985]
[1617376536087,76.33025,2061.1,2061.0,154.04985]
[1617376541096,75.36085,2061.1,2061.0,154.04985]
[1617376541496,76.33305,2061.1,2061.0,154.04985]
[1617376541701,75.36085,2061.1,2061.0,154.04985]
[1617376541997,76.04091097,2061.1,2061.0,154.04985]
[1617376542197,77.47211097,2061.1,2061.0,154.04985]
[1617376543799,3.07941097,2061.1,2061.0,154.04985]
[1617376544000,0.96815,2061.1,2061.0,154.04985]
[1617376544401,1.64840495,2061.1,2061.0,154.04985]
[1617376544800,69.93330495,2061.1,2061.0,154.04985]
[1617376546805,69.25305,2061.1,2061.0,154.04985]
[1617376547904,70.16012645,2061.1,2061.0,154.04985]
[1617376548103,69.19197645,2061.1,2061.0,154.04985]
[1617376548304,71.19197645,2061.1,2061.0,154.04985]
[1617376548704,71.19197645,2061.1,2061.0,151.1429]
[1617376549005,100.2849,2061.1,2061.0,151.1429]
[1617376549205,70.2849,2061.1,2061.0,151.1429]
[1617376549507,76.03942219,2061.1,2061.0,151.1429]
[1617376549706,73.19185,2061.1,2061.0,151.1429]
[1617376552208,77.17735632,2061.1,2061.0,151.1429]
[1617376552406,75.17735632,2061.1,2061.0,151.1429]
[1617376553007,71.19185,2061.1,2061.0,151.1429]
[1617376553407,101.19185,2061.1,2061.0,151.1429]
[1617376554010,105.1773954,2061.1,2061.0,151.1429]
[1617376554211,36.8924954,2061.1,2061.0,151.1429]
[1617376554410,32.90695,2061.1,2061.0,150.427]
[1617376554610,32.90695,2061.1,2061.0,145.909]
[1617376554812,36.89058945,2061.1,2061.0,140.4289]
[1617376555010,36.89058945,2061.1,2061.0,136.266]
[1617376555210,32.90695,2061.1,2061.0,129.7733]
[1617376555410,34.90695,2061.1,2061.0,127.6181]
[1617376555613,43.61172834,2061.1,2061.0,127.2423]
[1617376556015,102.31362834,2061.1,2061.0,127.2423]
[1617376556210,102.31362834,2061.1,2061.0,126.5062]
[1617376556611,47.93937444,2061.1,2061.0,126.124]
[1617376556810,47.93937444,2061.1,2061.0,123.4175]
[1617376557210,38.4903534,2061.1,2061.0,123.4175]
[1617376557810,38.4903534,2061.1,2061.0,121.9425]
[1617376558011,38.4903534,2061.1,2061.0,121.6898]
[1617376558211,43.61185901,2061.1,2061.0,121.6898]
[1617376558812,43.61185901,2061.1,2061.0,120.8248]
[1617376559012,43.61185901,2061.1,2061.0,120.5651]
[1617376559712,43.61185901,2061.1,2061.0,120.4701]
[1617376559912,43.61185901,2061.1,2061.0,120.3691]
[1617376560912,43.61185901,2061.1,2061.0,119.1741]
[1617376561114,46.46235481,2061.1,2061.0,113.2389]
[1617376561313,40.1947534,2061.1,2061.0,113.1747]
[1617376561513,40.1947534,2061.1,2061.0,112.5469]
[1617376561715,40.1947534,2061.1,2061.0,111.9011]
[1617376561915,40.1947534,2061.1,2061.0,111.1681]
[1617376562113,41.24200831,2061.1,2061.0,111.1681]
[1617376562515,41.24200831,2061.1,2061.0,110.3853]
[1617376562714,41.24200831,2061.1,2061.0,109.9145]
[1617376562913,41.24200831,2061.1,2061.0,108.0848]
[1617376563114,43.6703598,2061.1,2061.0,107.1156]
[1617376563314,43.6703598,2061.1,2061.0,0.42]
[1617376563515,51.0782812,2061.1,2060.3,2.86245]
[1617376563716,51.0782812,2061.1,2058.7,2.0]
[1617376563917,71.0037,2059.1,2058.4,13.7427]
[1617376564516,0.02848195,2058.6,2058.4,13.7427]
[1617376564717,0.02848245,2058.5,2058.4,13.7427]
[1617376565517,0.02839103,2059.0,2058.4,13.7427]
[1617376565717,0.02839103,2059.0,2058.9,2.90695]
[1617376569022,0.01549103,2059.4,2058.9,2.90695]
[1617376569621,0.01549103,2059.4,2059.3,2.90695]
[1617376571123,0.01549103,2059.4,2059.3,3.86745]
[1617376571323,0.01549103,2059.4,2059.3,2.90695]
[1617376572126,30.01549103,2059.4,2059.3,2.90695]
[1617376573427,0.01549103,2059.4,2059.3,2.90695]
[1617376576028,31.95304103,2059.7,2059.3,2.90695]
[1617376576428,65.4977,2059.3,2058.4,13.7427]
[1617376576629,30.0,2059.3,2058.4,13.7427]
[1617376577028,30.9601,2059.3,2058.4,13.7427]
[1617376577829,30.9601,2059.3,2059.0,2.90695]
[1617376578429,63.1833,2059.2,2059.0,2.90695]
[1617376578629,94.5612,2059.2,2059.0,2.90695]
[1617376579530,94.5612,2059.2,2059.0,1.91615]
[1617376579730,2.90695,2059.1,2059.0,1.91615]
[1617376579931,32.90695,2059.1,2059.0,1.91615]
[1617376581935,32.90695,2059.1,2058.4,12.7757]
[1617376582136,65.9215,2057.0,2056.4,2.9812]
[1617376582336,65.9215,2057.0,2056.4,2.0]
[1617376582536,65.9215,2057.0,2056.2,2.0]
[1617376582738,65.9215,2057.0,2055.7,30.0]
[1617376583534,65.9215,2057.0,2055.8,2.0]
[1617376583735,65.9215,2057.0,2056.9,2.90695]
[1617376585438,66.9008,2057.0,2056.9,2.90695]
[1617376586448,66.9008,2057.0,2054.8,16.1747]
[1617376586449,30.9793,2057.0,2054.8,16.1747]
[1617376586637,30.9793,2057.0,2054.8,13.6037]
[1617376586839,70.7385,2055.7,2054.9,2.0]
[1617376587045,70.7385,2055.7,2055.0,30.0]
[1617376587243,70.7385,2055.7,2055.1,2.0]
[1617376587839,0.9793,2057.0,2055.6,2.90695]
[1617376588043,59.8513,2056.5,2055.6,2.90695]
[1617376589442,1.6776,2056.9,2055.6,32.90695]
[1617376589642,0.67746685,2057.9,2055.6,35.46185]
[1617376589845,2.90695,2057.5,2057.4,2.90695]
[1617376591244,2.90695,2057.5,2057.4,4.38445]
[1617376591444,0.67851418,2058.4,2057.4,4.38445]
[1617376591644,0.67863549,2058.7,2057.4,34.38445]
[1617376591844,0.67863549,2058.7,2058.6,2.90695]
[1617376592046,0.67899616,2059.1,2058.6,4.13785]
[1617376592446,0.90532822,2059.3,2058.6,4.13785]
[1617376592447,0.67900079,2059.3,2058.6,4.13785]
[1617376592646,0.67900079,2059.3,2058.6,1.70599784]
[1617376592847,65.2808,2058.9,2058.6,1.70599784]
[1617376593047,65.2808,2058.9,2058.1,1.2909]
[1617376593846,2.90695,2058.2,2057.9,2.90695]
[1617376594047,1.93655,2058.2,2057.9,2.90695]
[1617376595650,1.93655,2058.2,2056.6,13.5376]
[1617376595851,0.9698,2058.2,2057.2,2.90695]
[1617376596051,72.0979,2057.5,2057.2,2.90695]
[1617376597451,72.0979,2057.5,2056.6,13.5376]
[1617376597852,72.0979,2057.5,2057.4,2.90695]
[1617376598654,72.0979,2057.5,2056.6,13.5376]
[1617376598853,73.6904,2057.5,2056.6,13.5376]
[1617376599853,73.6904,2057.5,2057.1,2.90695]
[1617376600254,73.6904,2057.5,2056.6,13.5376]
[1617376600655,72.0979,2057.5,2056.6,13.5376]
[1617376601057,71.1275,2057.5,2056.6,13.5376]
[1617376601957,2.90695,2056.7,2056.6,16.44455]
[1617376602757,2.90695,2056.7,2056.6,13.5376]
[1617376603859,2.90695,2056.7,2056.6,16.44455]
[1617376605159,2.90695,2056.7,2056.6,13.5376]
[1617376605858,2.90695,2056.7,2056.6,16.44455]
[1617376608163,1.93655,2056.7,2056.6,16.44455]
[1617376610363,0.9755,2057.0,2056.6,16.44455]
[1617376610364,71.1275,2057.5,2056.6,16.44455]
[1617376611068,101.1275,2057.5,2056.6,16.44455]
[1617376611467,71.1275,2057.5,2056.6,16.44455]
[1617376611868,71.1275,2057.5,2057.1,2.90695]
[1617376612066,101.1275,2057.5,2057.1,2.90695]
[1617376613267,71.1275,2057.5,2057.1,2.90695]
[1617376614071,71.1275,2057.5,2057.4,2.90695]
[1617376615069,70.1571,2057.5,2057.4,4.56855]
[1617376616271,2.90695,2058.3,2057.4,4.56855]
[1617376617072,0.9791,2058.8,2057.4,4.56855]
[1617376617672,55.9875,2057.7,2057.4,4.56855]
[1617376620975,2.90695,2058.2,2057.4,4.56855]
[1617376621176,63.11662436,2059.1,2057.4,6.56855]
[1617376621376,63.11662436,2059.1,2057.5,30.0]
[1617376621577,63.11662436,2059.1,2057.6,2.0]
[1617376621977,63.11662436,2059.1,2058.8,2.90695]
[1617376622176,62.14622436,2059.1,2058.8,2.90695]
[1617376622376,62.14622436,2059.1,2058.8,4.63335]
[1617376622978,1.46032436,2059.1,2058.8,4.63335]
[1617376623777,77.108,2059.9,2058.8,4.63335]
[1617376623978,80.01495,2059.9,2059.8,2.90695]
[1617376624177,80.01495,2059.9,2059.8,4.44005]
[1617376624379,2.90695,2059.9,2059.8,4.44005]
[1617376625979,2.90695,2060.3,2059.8,4.44005]
[1617376626979,2.90695,2060.3,2059.8,34.44005]
[1617376627179,67.283,2060.9,2059.9,2.0]
[1617376627377,67.283,2060.9,2059.8,34.44005]
[1617376627978,67.283,2060.9,2060.8,2.90695]
[1617376628179,67.283,2060.9,2060.8,4.62125]
[1617376628379,11.0306,2061.3,2060.8,4.62125]
[1617376629181,10.0602,2061.3,2060.8,4.62125]
[1617376629980,10.0602,2061.3,2061.2,2.90695]
[1617376630380,10.0602,2061.3,2060.8,1.7143]
[1617376631983,10.0602,2061.3,2061.2,2.90695]
[1617376636086,9.0898,2061.3,2061.2,2.90695]
[1617376638087,1.784,2061.3,2061.2,2.90695]
[1617376638487,2.90695,2062.7,2061.2,2.90695]
[1617376639686,75.42618337,2062.9,2061.2,2.90695]
[1617376640088,75.42618337,2062.9,2062.8,2.90695]
[1617376640288,2.90695,2063.2,2062.8,2.90695]
[1617376642192,2.90695,2062.9,2062.8,2.90695]
[1617376642591,2.90695,2062.9,2061.4,0.9596]
[1617376642991,2.90695,2062.9,2061.0,0.9606]
[1617376643193,73.6759,2062.7,2061.0,0.9606]
[1617376644092,73.6759,2062.7,2062.5,2.90695]
[1617376644695,73.6759,2062.7,2060.8,1.7143]
[1617376644897,73.6759,2062.7,2060.1,32.9592]
[1617376645094,73.6759,2062.7,2060.1,30.0]
[1617376645295,2.6644,2063.0,2060.1,30.0]
[1617376645494,55.4911,2062.0,2057.2,2.0]
[1617376645695,58.3509,2062.0,2057.2,2.0]
[1617376646594,58.3509,2062.0,2057.3,30.0]
[1617376646795,58.3509,2062.0,2057.4,2.42]
[1617376646996,58.3509,2062.0,2057.5,30.0]
[1617376647397,57.3738,2062.0,2057.6,2.0]
[1617376647697,57.3738,2062.0,2057.8,2.0]
[1617376648096,60.28075,2062.0,2061.9,2.90695]
[1617376648296,2.90695,2062.0,2061.9,2.90695]
[1617376650100,1.93655,2062.0,2061.9,2.90695]
[1617376650297,56.9288,2062.3,2061.9,2.90695]
[1617376650898,0.9729,2063.0,2061.9,4.61725]
[1617376652099,2.90695,2062.4,2062.2,2.90695]
[1617376652299,0.9729,2063.0,2062.2,2.90695]
[1617376652899,3.39901274,2063.0,2062.2,2.90695]
[1617376654101,2.90695,2062.8,2062.6,2.90695]
[1617376654900,4.64945,2062.8,2061.1,13.4373]
[1617376655902,2.90695,2062.8,2061.1,13.4373]
[1617376656105,2.90695,2062.8,2062.7,2.90695]
[1617376657104,1.93655,2062.8,2062.7,2.90695]
[1617376659404,1.93655,2062.8,2062.7,2.85545]
[1617376660404,0.9729,2063.0,2062.7,2.85545]
[1617376661112,58.6199,2063.4,2062.7,2.85545]
[1617376662208,58.6199,2063.4,2063.3,2.90695]
[1617376662410,58.6199,2063.4,2061.7,1.2481]
[1617376662812,58.6199,2063.4,2061.2,3.7555]
[1617376664315,90.1411,2063.4,2063.3,2.90695]
[1617376664715,90.1411,2063.4,2061.2,32.0]
[1617376665615,91.2411,2063.4,2061.2,32.0]
[1617376665818,91.2411,2063.4,2062.7,0.42]
[1617376666216,90.6309,2063.4,2063.3,2.90695]
[1617376668117,90.6309,2063.4,2062.7,0.42]
[1617376668319,2.90695,2062.9,2062.6,2.90695]
[1617376668627,80.7892,2062.7,2062.6,2.90695]
[1617376669019,110.7892,2062.7,2062.6,2.90695]
[1617376669220,109.8206,2062.7,2062.6,2.90695]
[1617376669428,1.6443,2062.7,2062.6,2.90695]
[1617376669621,0.9832,2062.9,2062.6,2.90695]
[1617376673121,61.34275,2063.0,2062.6,2.90695]
[1617376673521,58.4358,2063.0,2062.6,2.90695]
[1617376674324,1.4606,2063.4,2062.9,2.90695]
[1617376675924,0.2386458,2063.3,2062.9,2.90695]
[1617376676125,0.7548458,2063.4,2062.9,2.90695]
[1617376676325,2.90695,2063.0,2062.9,2.90695]
[1617376676525,3.88925,2063.0,2062.9,2.90695]
[1617376678825,35.34235,2063.0,2062.9,2.90695]
[1617376679625,5.34235,2063.0,2062.9,2.90695]
[1617376679825,5.34235,2063.0,2062.9,2.20555]
[1617376680025,3.88925,2063.0,2062.9,2.20555]
[1617376680825,3.88925,2063.0,2061.2,32.0]
[1617376681825,61.1709,2062.9,2061.2,32.0]
[1617376682330,61.1709,2062.9,2062.8,2.90695]
[1617376682531,3.88925,2063.0,2062.8,2.90695]
[1617376683733,33.88925,2063.0,2061.1,13.4373]
[1617376683935,64.3326,2062.4,2061.1,13.4373]
[1617376684130,66.1343,2062.4,2061.1,13.4373]
[1617376684331,69.04125,2062.4,2062.3,2.90695]
[1617376684731,5.67725,2062.4,2062.3,2.90695]
[1617376685133,3.88735,2062.4,2062.3,2.90695]
[1617376685330,2.90695,2062.4,2062.3,2.90695]
[1617376691136,1.93835,2062.4,2062.3,2.90695]
[1617376692346,0.9769,2062.5,2062.3,4.90605]
[1617376692547,2.90695,2062.9,2062.3,4.90605]
[1617376694352,2.90695,2062.9,2062.8,2.90695]
[1617376697857,2.96303796,2062.9,2062.8,2.90695]
[1617376698264,1.99443796,2062.9,2062.8,2.90695]
[1617376698660,1.93835,2062.9,2062.8,2.90695]
[1617376701560,1.93835,2062.9,2062.8,4.70905]
[1617376702662,1.93835,2062.9,2062.8,2.90695]
[1617376705164,0.96975,2062.9,2062.8,2.90695]
[1617376705364,0.9609,2063.0,2062.8,2.90695]
[1617376706067,6.25253666,2062.9,2062.8,2.90695]
[1617376707568,7.21713666,2062.9,2062.8,2.90695]
[1617376708169,37.98860061,2062.9,2062.8,2.90695]
[1617376708570,6.55488455,2062.9,2062.8,2.90695]
[1617376708978,2.90695,2063.1,2062.9,13.44511545]
[1617376712177,1.93835,2063.1,2062.9,13.44511545]
[1617376713280,36.12048665,2063.2,2062.9,13.44511545]
[1617376713480,0.24252289,2063.1,2062.9,13.44511545]
[1617376715384,0.24252289,2063.1,2062.9,8.86821545]
[1617376715583,0.24252289,2063.1,2062.9,7.73021545]
[1617376716482,3.14947289,2063.1,2062.9,7.73021545]
[1617376716683,30.0,2063.0,2062.9,6.04071545]
[1617376716883,30.9662,2063.0,2062.9,6.04071545]
[1617376717083,31.20843137,2063.0,2062.9,6.04071545]
[1617376717283,31.20843137,2063.0,2062.9,5.98681545]
[1617376717985,1.20843137,2063.0,2062.9,5.98681545]
[1617376718586,16.20843137,2063.0,2062.9,5.98681545]
[1617376719187,15.23983137,2063.0,2062.9,5.98681545]
[1617376721487,15.9562,2063.0,2062.9,5.98681545]
[1617376721989,15.0,2063.0,2062.9,5.98681545]
[1617376722189,15.0,2063.0,2062.9,7.96451545]
[1617376722790,15.0,2063.0,2062.9,9.96451545]
[1617376723889,12.9099,2063.0,2062.9,9.96451545]
[1617376724090,15.44554425,2063.0,2062.9,9.96451545]
[1617376724289,14.30682253,2063.0,2062.9,9.96451545]
[1617376724790,11.4573,2063.0,2062.9,9.96451545]
[1617376725091,3.98825384,2063.1,2062.9,39.96451545]
[1617376725490,2.13378134,2063.1,2062.9,39.96451545]
[1617376725891,1.99529069,2063.0,2062.9,39.96451545]
[1617376726091,3.98773503,2063.4,2062.9,39.96451545]
[1617376726291,3.01913503,2063.4,2062.9,39.96451545]
[1617376726592,3.01913503,2063.4,2063.3,4.90695]
[1617376727494,5.12630807,2063.7,2063.3,4.90695]